[Event "Titled Tuesday Blitz October 25 Late 2022"]
[White "Petrova, Irina"]
[Black "Nozdrachev, Leonid"]
[WhiteFideId "14124122"]
[BlackFideId "24113433"]
[WhiteElo "2023"]
[BlackElo "2249"]
[Result "1/2-1/2"]
[Round "04"]
[TimeControl "180+1"]
[Date "2022.10.26"]
[WhiteClock "0:00:12"]
[BlackClock "0:00:43"]

1. e4 {[%clk 0:03:00]}  c6 {[%clk 0:02:54]} 2. d4 {[%clk 0:03:00]}  d5 {[%clk 0:02:55]} 3. Nc3 {[%clk 0:03:01]}  dxe4 {[%clk 0:02:51]} 4. Nxe4 {[%clk 0:03:02]}  Nf6 {[%clk 0:02:52]} 5. Nxf6+ {[%clk 0:03:02]}  exf6 {[%clk 0:02:53]} 6. Be3 {[%clk 0:03:02]}  Na6 {[%clk 0:02:53]} 7. Bxa6 {[%clk 0:02:26]}  Qa5+ {[%clk 0:02:48]} 8. Qd2 {[%clk 0:02:21]}  Qxa6 {[%clk 0:02:49]} 9. Ne2 {[%clk 0:02:21]}  Bg4 {[%clk 0:02:46]} 10. h3 {[%clk 0:02:13]}  Be6 {[%clk 0:02:35]} 11. O-O {[%clk 0:02:09]}  Be7 {[%clk 0:02:30]} 12. Rfe1 {[%clk 0:02:05]}  O-O {[%clk 0:02:30]} 13. Nf4 {[%clk 0:02:04]}  Rad8 {[%clk 0:02:17]} 14. Nxe6 {[%clk 0:01:39]}  fxe6 {[%clk 0:02:17]} 15. c3 {[%clk 0:01:38]}  e5 {[%clk 0:02:15]} 16. Qc2 {[%clk 0:01:25]}  Qc4 {[%clk 0:02:10]} 17. dxe5 {[%clk 0:01:15]}  fxe5 {[%clk 0:02:11]} 18. Bxa7 {[%clk 0:01:15]}  Bc5 {[%clk 0:02:08]} 19. Bxc5 {[%clk 0:01:14]}  Qxc5 {[%clk 0:02:09]} 20. Qb3+ {[%clk 0:01:14]}  Rf7 {[%clk 0:02:08]} 21. Qc2 {[%clk 0:00:58]}  Rdf8 {[%clk 0:02:04]} 22. Rf1 {[%clk 0:00:57]}  g6 {[%clk 0:02:01]} 23. Rad1 {[%clk 0:00:56]}  Kg7 {[%clk 0:02:01]} 24. Rd2 {[%clk 0:00:56]}  Qc4 {[%clk 0:02:00]} 25. Qb3 {[%clk 0:00:49]}  Qf4 {[%clk 0:01:54]} 26. Qd1 {[%clk 0:00:49]}  Qc4 {[%clk 0:01:50]} 27. Qb3 {[%clk 0:00:47]}  Qf4 {[%clk 0:01:49]} 28. Qd1 {[%clk 0:00:47]}  h5 {[%clk 0:01:49]} 29. Rd7 {[%clk 0:00:46]}  Qc4 {[%clk 0:01:46]} 30. Rxf7+ {[%clk 0:00:46]}  Rxf7 {[%clk 0:01:46]} 31. Qb3 {[%clk 0:00:45]}  Qe2 {[%clk 0:01:46]} 32. a4 {[%clk 0:00:39]}  e4 {[%clk 0:01:45]} 33. Qb4 {[%clk 0:00:38]}  Rd7 {[%clk 0:01:36]} 34. Qb6 {[%clk 0:00:36]}  Kh6 {[%clk 0:01:33]} 35. Qe3+ {[%clk 0:00:35]}  Qxe3 {[%clk 0:01:33]} 36. fxe3 {[%clk 0:00:36]}  Rd3 {[%clk 0:01:33]} 37. Rf7 {[%clk 0:00:34]}  b5 {[%clk 0:01:31]} 38. axb5 {[%clk 0:00:33]}  cxb5 {[%clk 0:01:32]} 39. Rb7 {[%clk 0:00:33]}  Rd5 {[%clk 0:01:28]} 40. Re7 {[%clk 0:00:33]}  Rd1+ {[%clk 0:01:26]} 41. Kh2 {[%clk 0:00:33]}  Rd2 {[%clk 0:01:27]} 42. Rxe4 {[%clk 0:00:32]}  Rxb2 {[%clk 0:01:27]} 43. Rb4 {[%clk 0:00:32]}  Re2 {[%clk 0:01:28]} 44. Rxb5 {[%clk 0:00:32]}  Rxe3 {[%clk 0:01:27]} 45. c4 {[%clk 0:00:31]}  Rc3 {[%clk 0:01:27]} 46. Rc5 {[%clk 0:00:31]}  h4 {[%clk 0:01:25]} 47. Rc8 {[%clk 0:00:29]}  Rc1 {[%clk 0:01:25]} 48. c5 {[%clk 0:00:29]}  Kg7 {[%clk 0:01:19]} 49. c6 {[%clk 0:00:29]}  Kh7 {[%clk 0:01:19]} 50. Rc7+ {[%clk 0:00:23]}  Kh6 {[%clk 0:01:19]} 51. Rc8 {[%clk 0:00:23]}  Kg7 {[%clk 0:01:19]} 52. c7 {[%clk 0:00:23]}  Kh7 {[%clk 0:01:18]} 53. Ra8 {[%clk 0:00:19]}  Rxc7 {[%clk 0:01:17]} 54. Ra4 {[%clk 0:00:20]}  g5 {[%clk 0:01:17]} 55. Ra5 {[%clk 0:00:19]}  Kg6 {[%clk 0:01:17]} 56. Ra6+ {[%clk 0:00:19]}  Kh5 {[%clk 0:01:15]} 57. Ra8 {[%clk 0:00:19]}  Re7 {[%clk 0:01:14]} 58. Rh8+ {[%clk 0:00:19]}  Kg6 {[%clk 0:01:15]} 59. Rg8+ {[%clk 0:00:19]}  Kf5 {[%clk 0:01:15]} 60. Rf8+ {[%clk 0:00:19]}  Ke4 {[%clk 0:01:15]} 61. Rg8 {[%clk 0:00:19]}  Re5 {[%clk 0:01:15]} 62. Rf8 {[%clk 0:00:18]}  Rf5 {[%clk 0:01:12]} 63. Re8+ {[%clk 0:00:18]}  Kf4 {[%clk 0:01:11]} 64. Ra8 {[%clk 0:00:18]}  Re5 {[%clk 0:01:09]} 65. Ra4+ {[%clk 0:00:18]}  Kf5 {[%clk 0:01:08]} 66. Rb4 {[%clk 0:00:17]}  Re4 {[%clk 0:01:07]} 67. Rb5+ {[%clk 0:00:16]}  Kf4 {[%clk 0:01:07]} 68. Rb8 {[%clk 0:00:16]}  Rd4 {[%clk 0:01:04]} 69. Rf8+ {[%clk 0:00:16]}  Ke5 {[%clk 0:01:04]} 70. Re8+ {[%clk 0:00:16]}  Kf6 {[%clk 0:01:03]} 71. Rf8+ {[%clk 0:00:16]}  Kg7 {[%clk 0:01:03]} 72. Rf5 {[%clk 0:00:16]}  Kg6 {[%clk 0:01:03]} 73. Ra5 {[%clk 0:00:16]}  Re4 {[%clk 0:00:59]} 74. Ra6+ {[%clk 0:00:16]}  Kf5 {[%clk 0:00:58]} 75. Ra5+ {[%clk 0:00:15]}  Re5 {[%clk 0:00:58]} 76. Ra8 {[%clk 0:00:15]}  Re7 {[%clk 0:00:57]} 77. Ra5+ {[%clk 0:00:14]}  Kg6 {[%clk 0:00:57]} 78. Ra6+ {[%clk 0:00:14]}  Kh5 {[%clk 0:00:57]} 79. Rb6 {[%clk 0:00:14]}  Rg7 {[%clk 0:00:57]} 80. g4+ {[%clk 0:00:13]}  hxg3+ {[%clk 0:00:55]} 81. Kxg3 {[%clk 0:00:14]}  Rc7 {[%clk 0:00:55]} 82. Rb3 {[%clk 0:00:14]}  Rc4 {[%clk 0:00:55]} 83. Ra3 {[%clk 0:00:14]}  Rc1 {[%clk 0:00:55]} 84. Rb3 {[%clk 0:00:14]}  Rg1+ {[%clk 0:00:55]} 85. Kh2 {[%clk 0:00:14]}  Re1 {[%clk 0:00:55]} 86. Kg3 {[%clk 0:00:13]}  Re8 {[%clk 0:00:54]} 87. Ra3 {[%clk 0:00:13]}  Rd8 {[%clk 0:00:53]} 88. Rb3 {[%clk 0:00:13]}  Rd4 {[%clk 0:00:51]} 89. Ra3 {[%clk 0:00:13]}  Rc4 {[%clk 0:00:51]} 90. Rb3 {[%clk 0:00:13]}  Ra4 {[%clk 0:00:51]} 91. Rc3 {[%clk 0:00:13]}  Rb4 {[%clk 0:00:51]} 92. Rd3 {[%clk 0:00:14]}  Rb1 {[%clk 0:00:50]} 93. Ra3 {[%clk 0:00:13]}  Rc1 {[%clk 0:00:48]} 94. Rb3 {[%clk 0:00:13]}  Kg6 {[%clk 0:00:48]} 95. Rb6+ {[%clk 0:00:12]}  Kh5 {[%clk 0:00:43]} 96. Rb3 {[%clk 0:00:12]} 1/2-1/2


[Site "https://www.chess.com"]

[Event "Titled Tuesday Blitz October 25 Late 2022"]
[White "Piesik, Piotr"]
[Black "Yeletsky, Ivan"]
[WhiteFideId "1136194"]
[BlackFideId "24180327"]
[WhiteElo "2323"]
[BlackElo "2391"]
[Result "1-0"]
[Round "04"]
[TimeControl "180+1"]
[Date "2022.10.26"]
[WhiteClock "0:01:33"]
[BlackClock "0:01:06"]

1. Nf3 {[%clk 0:03:00]}  c6 {[%clk 0:02:59]} 2. g3 {[%clk 0:02:59]}  g6 {[%clk 0:02:58]} 3. Bg2 {[%clk 0:02:59]}  Bg7 {[%clk 0:02:59]} 4. O-O {[%clk 0:02:59]}  e5 {[%clk 0:02:59]} 5. e4 {[%clk 0:02:58]}  d6 {[%clk 0:02:58]} 6. d4 {[%clk 0:02:58]}  Nd7 {[%clk 0:02:58]} 7. dxe5 {[%clk 0:02:58]}  dxe5 {[%clk 0:02:58]} 8. Qe2 {[%clk 0:02:57]}  Ngf6 {[%clk 0:02:57]} 9. b3 {[%clk 0:02:57]}  O-O {[%clk 0:02:57]} 10. a4 {[%clk 0:02:57]}  Qc7 {[%clk 0:02:53]} 11. Nbd2 {[%clk 0:02:54]}  b6 {[%clk 0:02:50]} 12. Bb2 {[%clk 0:02:52]}  a5 {[%clk 0:02:50]} 13. Rfd1 {[%clk 0:02:51]}  Ba6 {[%clk 0:02:49]} 14. Qe1 {[%clk 0:02:51]}  Rfe8 {[%clk 0:02:48]} 15. Bf1 {[%clk 0:02:51]}  Bxf1 {[%clk 0:02:45]} 16. Kxf1 {[%clk 0:02:52]}  Nc5 {[%clk 0:02:42]} 17. Kg2 {[%clk 0:02:51]}  b5 {[%clk 0:02:39]} 18. Bc3 {[%clk 0:02:48]}  Bh6 {[%clk 0:02:29]} 19. Qe2 {[%clk 0:02:40]}  Kg7 {[%clk 0:02:25]} 20. Bb2 {[%clk 0:02:09]}  Rab8 {[%clk 0:02:13]} 21. Ba3 {[%clk 0:02:08]}  Ne6 {[%clk 0:02:07]} 22. Nf1 {[%clk 0:02:03]}  Nd7 {[%clk 0:02:03]} 23. Bd6 {[%clk 0:02:02]}  Qb7 {[%clk 0:02:00]} 24. Bxb8 {[%clk 0:02:02]}  Rxb8 {[%clk 0:02:01]} 25. axb5 {[%clk 0:02:00]}  cxb5 {[%clk 0:02:01]} 26. Rxa5 {[%clk 0:01:59]}  Ndc5 {[%clk 0:01:57]} 27. Rd5 {[%clk 0:01:48]}  f6 {[%clk 0:01:31]} 28. b4 {[%clk 0:01:37]}  Na4 {[%clk 0:01:05]} 29. Rdxb5 {[%clk 0:01:34]}  Qc7 {[%clk 0:01:06]} 30. Rxb8 {[%clk 0:01:33]}  Qxb8 {[%clk 0:01:06]} 31. Rxa4 {[%clk 0:01:33]} 1-0


[Site "https://www.chess.com"]

[Event "Titled Tuesday Blitz October 25 Late 2022"]
[White "Prydun, Andriy"]
[Black "Besedes, Danilo"]
[WhiteFideId "14145898"]
[BlackFideId "946796"]
[WhiteElo "2163"]
[BlackElo "2352"]
[Result "0-1"]
[Round "04"]
[TimeControl "180+1"]
[Date "2022.10.26"]
[WhiteClock "0:00:01"]
[BlackClock "0:01:06"]

1. e4 {[%clk 0:02:55]}  c6 {[%clk 0:02:59]} 2. d4 {[%clk 0:02:54]}  d5 {[%clk 0:02:59]} 3. e5 {[%clk 0:02:54]}  Bf5 {[%clk 0:02:58]} 4. Bd3 {[%clk 0:02:55]}  Bxd3 {[%clk 0:02:58]} 5. cxd3 {[%clk 0:02:56]}  e6 {[%clk 0:02:57]} 6. Nc3 {[%clk 0:02:56]}  Ne7 {[%clk 0:02:57]} 7. Nf3 {[%clk 0:02:55]}  Nf5 {[%clk 0:02:57]} 8. O-O {[%clk 0:02:54]}  c5 {[%clk 0:02:57]} 9. dxc5 {[%clk 0:02:40]}  Bxc5 {[%clk 0:02:56]} 10. d4 {[%clk 0:02:40]}  Be7 {[%clk 0:02:56]} 11. g4 {[%clk 0:02:39]}  Nh4 {[%clk 0:02:55]} 12. Nxh4 {[%clk 0:02:38]}  Bxh4 {[%clk 0:02:56]} 13. f4 {[%clk 0:02:38]}  Be7 {[%clk 0:02:56]} 14. f5 {[%clk 0:02:39]}  Nc6 {[%clk 0:02:56]} 15. Kh1 {[%clk 0:02:20]}  Qb6 {[%clk 0:02:48]} 16. Ne2 {[%clk 0:02:20]}  O-O-O {[%clk 0:02:43]} 17. Rb1 {[%clk 0:02:13]}  h5 {[%clk 0:02:42]} 18. g5 {[%clk 0:01:56]}  g6 {[%clk 0:02:21]} 19. f6 {[%clk 0:01:53]}  Bf8 {[%clk 0:02:16]} 20. h4 {[%clk 0:01:49]}  Kb8 {[%clk 0:02:15]} 21. b4 {[%clk 0:01:39]}  a6 {[%clk 0:02:12]} 22. Be3 {[%clk 0:01:31]}  Rc8 {[%clk 0:02:12]} 23. Rf3 {[%clk 0:01:26]}  Na7 {[%clk 0:02:11]} 24. a4 {[%clk 0:01:25]}  Bxb4 {[%clk 0:02:10]} 25. Bd2 {[%clk 0:01:25]}  a5 {[%clk 0:02:10]} 26. Bxb4 {[%clk 0:01:03]}  axb4 {[%clk 0:02:09]} 27. Rfb3 {[%clk 0:01:02]}  Rc4 {[%clk 0:02:08]} 28. Rd3 {[%clk 0:00:37]}  Rhc8 {[%clk 0:02:05]} 29. Nc1 {[%clk 0:00:35]}  Rc3 {[%clk 0:01:55]} 30. Nb3 {[%clk 0:00:33]}  Rxd3 {[%clk 0:01:54]} 31. Qxd3 {[%clk 0:00:34]}  Rc3 {[%clk 0:01:54]} 32. Qd2 {[%clk 0:00:24]}  Nc6 {[%clk 0:01:53]} 33. Nc5 {[%clk 0:00:23]}  Rxc5 {[%clk 0:01:45]} 34. dxc5 {[%clk 0:00:24]}  Qxc5 {[%clk 0:01:46]} 35. Rc1 {[%clk 0:00:21]}  Qd4 {[%clk 0:01:36]} 36. Qe1 {[%clk 0:00:13]}  Qxe5 {[%clk 0:01:31]} 37. Qxe5+ {[%clk 0:00:10]}  Nxe5 {[%clk 0:01:30]} 38. Re1 {[%clk 0:00:10]}  Nd7 {[%clk 0:01:24]} 39. Rb1 {[%clk 0:00:09]}  Kc7 {[%clk 0:01:22]} 40. Rxb4 {[%clk 0:00:10]}  b6 {[%clk 0:01:19]} 41. Kg2 {[%clk 0:00:09]}  Kc6 {[%clk 0:01:18]} 42. Rb2 {[%clk 0:00:08]}  Ne5 {[%clk 0:01:18]} 43. Ra2 {[%clk 0:00:05]}  Nc4 {[%clk 0:01:18]} 44. Re2 {[%clk 0:00:06]}  Kd6 {[%clk 0:01:18]} 45. Ra2 {[%clk 0:00:05]}  e5 {[%clk 0:01:17]} 46. Kf3 {[%clk 0:00:05]}  Ke6 {[%clk 0:01:15]} 47. Rc2 {[%clk 0:00:04]}  Kf5 {[%clk 0:01:14]} 48. Kg3 {[%clk 0:00:04]}  e4 {[%clk 0:01:14]} 49. Rf2+ {[%clk 0:00:04]}  Ke5 {[%clk 0:01:14]} 50. Ra2 {[%clk 0:00:04]}  d4 {[%clk 0:01:14]} 51. Rc2 {[%clk 0:00:04]}  Kd5 {[%clk 0:01:14]} 52. Kf4 {[%clk 0:00:04]}  d3 {[%clk 0:01:12]} 53. Ra2 {[%clk 0:00:02]}  Kd4 {[%clk 0:01:10]} 54. Ra3 {[%clk 0:00:02]}  e3 {[%clk 0:01:09]} 55. Ra1 {[%clk 0:00:03]}  d2 {[%clk 0:01:07]} 56. a5 {[%clk 0:00:03]}  bxa5 {[%clk 0:01:06]} 57. Rg1 {[%clk 0:00:01]}  e2 {[%clk 0:01:06]} 0-1


[Site "https://www.chess.com"]

[Event "Titled Tuesday Blitz October 25 Late 2022"]
[White "Przybylski, Wojciech"]
[Black "Haszon, David"]
[WhiteFideId "1117599"]
[BlackFideId "733610"]
[WhiteElo "2221"]
[BlackElo "2211"]
[Result "1-0"]
[Round "04"]
[TimeControl "180+1"]
[Date "2022.10.26"]
[WhiteClock "0:00:03"]
[BlackClock "0:00:05"]

1. d4 {[%clk 0:03:00]}  Nf6 {[%clk 0:02:59]} 2. c4 {[%clk 0:02:59]}  g6 {[%clk 0:02:59]} 3. Nc3 {[%clk 0:02:58]}  d5 {[%clk 0:03:00]} 4. cxd5 {[%clk 0:02:58]}  Nxd5 {[%clk 0:02:59]} 5. e4 {[%clk 0:02:58]}  Nxc3 {[%clk 0:02:59]} 6. bxc3 {[%clk 0:02:58]}  Bg7 {[%clk 0:03:00]} 7. Nf3 {[%clk 0:02:58]}  O-O {[%clk 0:02:59]} 8. Be3 {[%clk 0:02:57]}  c5 {[%clk 0:03:00]} 9. Be2 {[%clk 0:02:57]}  cxd4 {[%clk 0:03:00]} 10. cxd4 {[%clk 0:02:57]}  Qa5+ {[%clk 0:03:00]} 11. Qd2 {[%clk 0:02:56]}  Qxd2+ {[%clk 0:03:00]} 12. Kxd2 {[%clk 0:02:56]}  Rd8 {[%clk 0:03:01]} 13. Rab1 {[%clk 0:02:54]}  Nc6 {[%clk 0:03:01]} 14. d5 {[%clk 0:02:47]}  e6 {[%clk 0:02:58]} 15. Bc4 {[%clk 0:02:41]}  Na5 {[%clk 0:02:52]} 16. Rhc1 {[%clk 0:02:26]}  Nxc4+ {[%clk 0:02:37]} 17. Rxc4 {[%clk 0:02:25]}  exd5 {[%clk 0:02:38]} 18. exd5 {[%clk 0:02:25]}  Rxd5+ {[%clk 0:02:38]} 19. Ke1 {[%clk 0:02:22]}  b6 {[%clk 0:02:34]} 20. Rc7 {[%clk 0:02:04]}  Ba6 {[%clk 0:02:32]} 21. Rd1 {[%clk 0:01:57]}  Rxd1+ {[%clk 0:02:17]} 22. Kxd1 {[%clk 0:01:56]}  Rd8+ {[%clk 0:02:12]} 23. Nd2 {[%clk 0:01:54]}  Ra8 {[%clk 0:02:02]} 24. Ne4 {[%clk 0:01:41]}  h6 {[%clk 0:01:23]} 25. Ke1 {[%clk 0:01:32]}  f5 {[%clk 0:01:15]} 26. Nd6 {[%clk 0:01:09]}  Rd8 {[%clk 0:01:12]} 27. Nf7 {[%clk 0:00:45]}  Rf8 {[%clk 0:00:48]} 28. Nxh6+ {[%clk 0:00:41]}  Bxh6 {[%clk 0:00:44]} 29. Bxh6 {[%clk 0:00:39]}  Re8+ {[%clk 0:00:42]} 30. Kd1 {[%clk 0:00:38]}  Re2 {[%clk 0:00:34]} 31. Rxa7 {[%clk 0:00:35]}  Bb5 {[%clk 0:00:31]} 32. Be3 {[%clk 0:00:32]}  Bc4 {[%clk 0:00:24]} 33. Rc7 {[%clk 0:00:23]}  Ba6 {[%clk 0:00:19]} 34. Rc6 {[%clk 0:00:19]}  Rxa2 {[%clk 0:00:18]} 35. Rxg6+ {[%clk 0:00:18]}  Kf7 {[%clk 0:00:19]} 36. Rxb6 {[%clk 0:00:18]}  Bd3 {[%clk 0:00:19]} 37. Bd4 {[%clk 0:00:16]}  Be4 {[%clk 0:00:18]} 38. f3 {[%clk 0:00:15]}  Bd3 {[%clk 0:00:18]} 39. Bb2 {[%clk 0:00:11]}  Ra8 {[%clk 0:00:16]} 40. g3 {[%clk 0:00:08]}  Rd8 {[%clk 0:00:13]} 41. Ke1 {[%clk 0:00:05]}  Kg8 {[%clk 0:00:12]} 42. Be5 {[%clk 0:00:03]}  Re8 {[%clk 0:00:11]} 43. f4 {[%clk 0:00:04]}  Be4 {[%clk 0:00:11]} 44. Ke2 {[%clk 0:00:03]}  Kh7 {[%clk 0:00:11]} 45. Ke3 {[%clk 0:00:03]}  Rd8 {[%clk 0:00:11]} 46. Bd4 {[%clk 0:00:03]}  Ra8 {[%clk 0:00:11]} 47. g4 {[%clk 0:00:03]}  Ra3+ {[%clk 0:00:11]} 48. Ke2 {[%clk 0:00:03]}  fxg4 {[%clk 0:00:11]} 49. Rb5 {[%clk 0:00:02]}  Bf3+ {[%clk 0:00:10]} 50. Kf2 {[%clk 0:00:02]}  Ra2+ {[%clk 0:00:09]} 51. Bb2 {[%clk 0:00:02]}  Kg6 {[%clk 0:00:06]} 52. Kg3 {[%clk 0:00:02]}  Kf7 {[%clk 0:00:06]} 53. h3 {[%clk 0:00:02]}  Bc6 {[%clk 0:00:04]} 54. Rb6 {[%clk 0:00:02]}  gxh3 {[%clk 0:00:02]} 55. Kxh3 {[%clk 0:00:02]}  Be4 {[%clk 0:00:02]} 56. Kg3 {[%clk 0:00:02]}  Ra7 {[%clk 0:00:02]} 57. Kg4 {[%clk 0:00:02]}  Bh7 {[%clk 0:00:02]} 58. f5 {[%clk 0:00:03]}  Rd7 {[%clk 0:00:03]} 59. Rb5 {[%clk 0:00:02]}  Bg8 {[%clk 0:00:03]} 60. Kg5 {[%clk 0:00:03]}  Kf8 {[%clk 0:00:04]} 61. Rb6 {[%clk 0:00:03]}  Bd5 {[%clk 0:00:04]} 62. Rb8+ {[%clk 0:00:03]}  Kf7 {[%clk 0:00:04]} 63. Rh8 {[%clk 0:00:03]}  Bc6 {[%clk 0:00:05]} 64. Rh7+ {[%clk 0:00:04]}  Kf8 {[%clk 0:00:05]} 65. Rh6 {[%clk 0:00:04]}  Kf7 {[%clk 0:00:06]} 66. Be5 {[%clk 0:00:04]}  Rb7 {[%clk 0:00:05]} 67. Rxc6 {[%clk 0:00:03]}  Kf8 {[%clk 0:00:05]} 68. Rc8+ {[%clk 0:00:03]}  Kf7 {[%clk 0:00:05]} 69. Rh8 {[%clk 0:00:03]}  Rb5 {[%clk 0:00:05]} 70. Rh7+ {[%clk 0:00:03]}  Kg8 {[%clk 0:00:06]} 71. Rg7+ {[%clk 0:00:03]}  Kf8 {[%clk 0:00:06]} 72. Bf6 {[%clk 0:00:03]}  Rb6 {[%clk 0:00:06]} 73. Rc7 {[%clk 0:00:03]}  Ra6 {[%clk 0:00:05]} 74. Kg6 {[%clk 0:00:03]}  Ra8 {[%clk 0:00:05]} 75. Rh7 {[%clk 0:00:03]}  Ra6 {[%clk 0:00:05]} 76. Rh8# {[%clk 0:00:03]} 1-0


[Site "https://www.chess.com"]

[Event "Titled Tuesday Blitz October 25 Late 2022"]
[White "Radovic, Luka"]
[Black "Coelho, Ramyres Santana"]
[WhiteFideId "911569"]
[BlackFideId "2120690"]
[WhiteElo "2257"]
[BlackElo "1888"]
[Result "1-0"]
[Round "04"]
[TimeControl "180+1"]
[Date "2022.10.26"]
[WhiteClock "0:00:56"]
[BlackClock "0:00:23"]

1. Nf3 {[%clk 0:03:00]}  Nf6 {[%clk 0:03:00]} 2. c4 {[%clk 0:03:01]}  g6 {[%clk 0:03:00]} 3. g3 {[%clk 0:03:01]}  Bg7 {[%clk 0:03:01]} 4. Bg2 {[%clk 0:03:01]}  O-O {[%clk 0:03:02]} 5. O-O {[%clk 0:03:02]}  d6 {[%clk 0:03:03]} 6. d4 {[%clk 0:03:03]}  c6 {[%clk 0:03:04]} 7. Nc3 {[%clk 0:03:02]}  Qc7 {[%clk 0:03:04]} 8. e4 {[%clk 0:03:00]}  Nbd7 {[%clk 0:03:05]} 9. h3 {[%clk 0:02:59]}  e5 {[%clk 0:03:06]} 10. d5 {[%clk 0:03:00]}  c5 {[%clk 0:03:06]} 11. Ne1 {[%clk 0:02:52]}  Nh5 {[%clk 0:03:00]} 12. Nd3 {[%clk 0:02:51]}  a6 {[%clk 0:02:39]} 13. Rb1 {[%clk 0:02:48]}  Nhf6 {[%clk 0:02:30]} 14. b4 {[%clk 0:02:46]}  b6 {[%clk 0:02:29]} 15. f4 {[%clk 0:02:42]}  exf4 {[%clk 0:02:21]} 16. gxf4 {[%clk 0:02:43]}  Re8 {[%clk 0:02:16]} 17. bxc5 {[%clk 0:02:36]}  Nxc5 {[%clk 0:02:17]} 18. e5 {[%clk 0:02:28]}  dxe5 {[%clk 0:02:10]} 19. fxe5 {[%clk 0:02:26]}  Nh5 {[%clk 0:01:56]} 20. d6 {[%clk 0:02:23]}  Qb8 {[%clk 0:01:56]} 21. Nxc5 {[%clk 0:02:21]}  Bxe5 {[%clk 0:01:35]} 22. Bxa8 {[%clk 0:01:58]}  Qxa8 {[%clk 0:01:36]} 23. Qd5 {[%clk 0:01:50]}  Qxd5 {[%clk 0:01:28]} 24. Nxd5 {[%clk 0:01:48]}  bxc5 {[%clk 0:01:28]} 25. Re1 {[%clk 0:01:32]}  Bxh3 {[%clk 0:01:11]} 26. Bh6 {[%clk 0:01:20]}  Bd4+ {[%clk 0:01:02]} 27. Kh2 {[%clk 0:01:18]}  Be6 {[%clk 0:01:02]} 28. d7 {[%clk 0:01:10]}  Bxd7 {[%clk 0:00:59]} 29. Rxe8+ {[%clk 0:01:03]}  Bxe8 {[%clk 0:01:00]} 30. Kh1 {[%clk 0:01:03]}  Be5 {[%clk 0:00:49]} 31. Re1 {[%clk 0:01:00]}  f6 {[%clk 0:00:41]} 32. Nxf6+ {[%clk 0:01:00]}  Nxf6 {[%clk 0:00:41]} 33. Rxe5 {[%clk 0:01:00]}  Bc6+ {[%clk 0:00:41]} 34. Kg1 {[%clk 0:01:01]}  Ng4 {[%clk 0:00:40]} 35. Rxc5 {[%clk 0:01:01]}  Nxh6 {[%clk 0:00:27]} 36. Rxc6 {[%clk 0:01:00]}  Nf5 {[%clk 0:00:26]} 37. Rxa6 {[%clk 0:01:00]}  Kg7 {[%clk 0:00:27]} 38. Ra7+ {[%clk 0:00:59]}  Kh6 {[%clk 0:00:22]} 39. c5 {[%clk 0:00:58]}  g5 {[%clk 0:00:18]} 40. c6 {[%clk 0:00:58]}  g4 {[%clk 0:00:18]} 41. c7 {[%clk 0:00:58]}  Nd6 {[%clk 0:00:18]} 42. Ra8 {[%clk 0:00:58]}  Kh5 {[%clk 0:00:18]} 43. c8=Q {[%clk 0:00:58]}  Nxc8 {[%clk 0:00:19]} 44. Rxc8 {[%clk 0:00:59]}  Kh4 {[%clk 0:00:19]} 45. a4 {[%clk 0:00:58]}  h5 {[%clk 0:00:19]} 46. a5 {[%clk 0:00:58]}  Kg3 {[%clk 0:00:20]} 47. a6 {[%clk 0:00:58]}  h4 {[%clk 0:00:21]} 48. a7 {[%clk 0:00:58]}  h3 {[%clk 0:00:22]} 49. a8=Q {[%clk 0:00:59]}  h2+ {[%clk 0:00:23]} 50. Kh1 {[%clk 0:00:59]}  Kh3 {[%clk 0:00:23]} 51. Qg2+ {[%clk 0:00:56]} 1-0


[Site "https://www.chess.com"]

[Event "Titled Tuesday Blitz October 25 Late 2022"]
[White "Rengifo Blancas, Renzo Jhonathan"]
[Black "Florescu, Codrut-Constantin"]
[WhiteFideId "3807185"]
[BlackFideId "1202200"]
[WhiteElo "2058"]
[BlackElo "2191"]
[Result "0-1"]
[Round "04"]
[TimeControl "180+1"]
[Date "2022.10.26"]
[WhiteClock "0:00:01"]
[BlackClock "0:00:32"]

1. d4 {[%clk 0:01:39]}  Nf6 {[%clk 0:02:57]} 2. Nc3 {[%clk 0:01:39]}  d5 {[%clk 0:02:57]} 3. Nf3 {[%clk 0:01:39]}  e6 {[%clk 0:02:54]} 4. Bf4 {[%clk 0:01:39]}  a6 {[%clk 0:02:54]} 5. e3 {[%clk 0:01:38]}  c5 {[%clk 0:02:54]} 6. Ne5 {[%clk 0:01:37]}  b5 {[%clk 0:02:53]} 7. dxc5 {[%clk 0:00:59]}  Bxc5 {[%clk 0:02:52]} 8. Qf3 {[%clk 0:00:59]}  Bb7 {[%clk 0:02:48]} 9. Qh3 {[%clk 0:00:58]}  Nbd7 {[%clk 0:02:44]} 10. Bd3 {[%clk 0:00:58]}  Nxe5 {[%clk 0:02:19]} 11. Bxe5 {[%clk 0:00:59]}  Bd6 {[%clk 0:02:20]} 12. Bxd6 {[%clk 0:00:45]}  Qxd6 {[%clk 0:02:18]} 13. a3 {[%clk 0:00:45]}  Rc8 {[%clk 0:02:15]} 14. O-O {[%clk 0:00:45]}  h6 {[%clk 0:02:13]} 15. Rfe1 {[%clk 0:00:45]}  O-O {[%clk 0:02:12]} 16. Rad1 {[%clk 0:00:46]}  Qe5 {[%clk 0:02:10]} 17. e4 {[%clk 0:00:46]}  d4 {[%clk 0:02:09]} 18. Ne2 {[%clk 0:00:45]}  Rfd8 {[%clk 0:02:07]} 19. f4 {[%clk 0:00:46]}  Qc7 {[%clk 0:02:06]} 20. e5 {[%clk 0:00:45]}  Nd5 {[%clk 0:02:02]} 21. Nxd4 {[%clk 0:00:41]}  Nxf4 {[%clk 0:01:56]} 22. Qg3 {[%clk 0:00:29]}  Rxd4 {[%clk 0:01:42]} 23. Bh7+ {[%clk 0:00:28]}  Kxh7 {[%clk 0:01:42]} 24. Rxd4 {[%clk 0:00:28]}  Ng6 {[%clk 0:01:37]} 25. c3 {[%clk 0:00:28]}  Bd5 {[%clk 0:01:27]} 26. h4 {[%clk 0:00:26]}  f5 {[%clk 0:01:07]} 27. h5 {[%clk 0:00:25]}  Ne7 {[%clk 0:01:06]} 28. Kh2 {[%clk 0:00:22]}  Qc6 {[%clk 0:01:01]} 29. Qh4 {[%clk 0:00:20]}  Qe8 {[%clk 0:00:56]} 30. Re3 {[%clk 0:00:20]}  Qf7 {[%clk 0:00:55]} 31. Rg3 {[%clk 0:00:19]}  Rg8 {[%clk 0:00:54]} 32. Rf4 {[%clk 0:00:18]}  Nc6 {[%clk 0:00:51]} 33. Re3 {[%clk 0:00:14]}  g5 {[%clk 0:00:50]} 34. hxg6+ {[%clk 0:00:13]}  Rxg6 {[%clk 0:00:50]} 35. g4 {[%clk 0:00:12]}  Qg7 {[%clk 0:00:47]} 36. Rg3 {[%clk 0:00:06]}  Qxe5 {[%clk 0:00:40]} 37. gxf5 {[%clk 0:00:05]}  Qe2+ {[%clk 0:00:37]} 38. Kh3 {[%clk 0:00:03]}  Bg2+ {[%clk 0:00:33]} 39. Kh2 {[%clk 0:00:02]}  Bf3+ {[%clk 0:00:33]} 40. Kh3 {[%clk 0:00:01]}  Qf1+ {[%clk 0:00:33]} 41. Kh2 {[%clk 0:00:01]}  Qh1# {[%clk 0:00:32]} 0-1


[Site "https://www.chess.com"]